fUSD/lending_fUSD_20250530
["ID","MTS","AMOUNT","RATE_DAILY","PERIOD"]
[363226217,1748629847596,-300.0,0.00024656,2]
[363226218,1748629847607,-300.0,0.00024656,2]
[363226219,1748629847618,-300.0,0.00024656,2]
[363226220,1748629847628,-300.0,0.00024656,2]
[363226221,1748629847638,-151.0,0.00024657,7]
[363226222,1748629847649,-238.385818,0.00024657,7]
[363226223,1748629847660,-150.0,0.00024658,2]
[363226224,1748629847671,-166.66,0.00024658,2]
[363226225,1748629847680,-1000.0,0.00024658,2]
[363226226,1748629847694,-453.99,0.00024658,2]
[363226227,1748629847705,-453.99,0.00024658,2]
[363226228,1748629847716,-710.85,0.00024658,2]
[363226229,1748629847728,-3375.8671831,0.00024728,2]
[363226230,1748629847738,-1000.0,0.00024764,2]
[363226231,1748629847747,-700.0,0.0002477,2]
[363226232,1748629847757,-400.0,0.0002477,2]
[363226233,1748629847769,-502.00374054,0.00024773,2]
[363226234,1748629847782,-359.05901085,0.00024773,2]
[363226235,1748629847792,-501.3177613,0.00024773,2]
[363226236,1748629847803,-245502.81802751,0.00024797,4]
[363226237,1748629847812,-161.899212,0.00024797,7]
[363226238,1748629847821,-196.145587,0.00024797,7]
[363226239,1748629847831,-300.0,0.00024799,10]
[363226240,1748629847840,-300.0,0.00024799,10]
[363226241,1748629847850,-300.0,0.00024799,10]
[363226242,1748629847859,-300.0,0.00024799,10]
[363226243,1748629847868,-522.68534186,0.00024799,30]
[363226244,1748629847877,-184.03,0.00024799,2]
[363226245,1748629847887,-151.666891,0.000248,7]
[363226246,1748629847896,-151.0,0.000248,7]
[363226247,1748629847905,-151.0,0.000248,7]
[363226248,1748629847915,-151.0,0.000248,7]
[363226249,1748629847924,-151.0,0.000248,7]
[363226250,1748629848138,-151.0,0.000248,7]
[363226251,1748629848148,-151.0,0.000248,7]
[363226252,1748629848159,-151.0,0.000248,7]
[363226253,1748629848168,-153.280355,0.000248,7]
[363226254,1748629848177,-622975.489127,0.000248,3]
[363226255,1748629848187,-151.0,0.000248,7]
[363226256,1748629848196,-242.120063,0.000248,7]
[363226257,1748629848206,-242.120063,0.000248,7]
[363226258,1748629848215,-151.0,0.000248,7]
[363226259,1748629848224,-151.0,0.000248,7]
[363226260,1748629848233,-151.0,0.000248,7]
[363226261,1748629848243,-215.345119,0.000248,7]
[363226262,1748629848252,-151.0,0.000248,7]
[363226263,1748629848261,-320.82141385,0.0002488,7]
[363226264,1748629848271,-300.0,0.00024899,10]
[363226265,1748629848280,-300.0,0.00024899,10]
[363226266,1748629848289,-300.0,0.00024899,10]
[363226267,1748629848299,-300.0,0.00024899,10]
[363226268,1748629848308,-3442.75,0.000249,2]
[363226269,1748629848318,-4565.2,0.000249,2]
[363226270,1748629848327,-4565.2,0.000249,2]
[363226271,1748629848338,-3442.75,0.000249,2]
[363226272,1748629848348,-9430.47,0.000249,2]
[363226273,1748629848362,-4920.29,0.000249,2]
[363226274,1748629848376,-949.75,0.000249,2]
[363226275,1748629848385,-151.0,0.000249,7]
[363226276,1748629848394,-151.402156,0.000249,7]
[363226277,1748629848403,-151.0,0.000249,7]
[363226278,1748629848413,-151.338691,0.000249,7]
[363226279,1748629848422,-163.304967,0.000249,7]
[363226280,1748629848433,-163.304967,0.000249,7]
[363226281,1748629848442,-151.0,0.000249,7]
[363226282,1748629848451,-151.0,0.000249,7]
[363226283,1748629848460,-151.0,0.000249,7]
[363226284,1748629848470,-151.0,0.000249,7]
[363226285,1748629848480,-151.0,0.000249,7]
[363226286,1748629848489,-152.03425,0.000249,7]
[363226287,1748629848499,-257.621904,0.000249,7]
[363226288,1748629848508,-325.254327,0.000249,7]
[363226289,1748629848517,-325.254327,0.000249,7]
[363226290,1748629848526,-151.0,0.000249,7]
[363226291,1748629848536,-151.0,0.000249,7]
[363226292,1748629848545,-151.0,0.000249,7]
[363226293,1748629848554,-151.0,0.000249,7]
[363226294,1748629848563,-151.0,0.000249,7]
[363226295,1748629848574,-151.0,0.000249,7]
[363226296,1748629848584,-151.0,0.000249,7]
[363226297,1748629848593,-984.26061,0.000249,7]
[363226298,1748629848602,-984.26061,0.000249,7]
[363226299,1748629848616,-819.55575,0.000249,7]
[363226300,1748629848626,-151.0,0.000249,7]
[363226301,1748629848635,-202.841095,0.000249,7]
[363226302,1748629848644,-202.841095,0.000249,7]
[363226303,1748629848654,-151.0,0.000249,7]
[363226304,1748629848663,-151.0,0.000249,7]
[363226305,1748629848673,-220.947744,0.000249,7]
[363226306,1748629848683,-151.0,0.000249,7]
[363226307,1748629848693,-151.0,0.000249,7]
[363226308,1748629848703,-151.0,0.000249,7]
[363226309,1748629848712,-151.0,0.000249,7]
[363226310,1748629848721,-949.451029,0.000249,7]
[363226311,1748629848731,-949.451029,0.000249,7]
[363226312,1748629848740,-151.0,0.000249,7]
[363226313,1748629848749,-152.1388,0.000249,7]
[363226314,1748629848758,-151.0,0.000249,7]
[363226315,1748629848767,-151.0,0.000249,7]
[363226316,1748629848777,-151.0,0.000249,7]
[363226317,1748629848786,-151.0,0.000249,7]
[363226318,1748629848796,-151.0,0.000249,7]
[363226319,1748629848805,-151.0,0.000249,7]
[363226320,1748629848815,-151.0,0.000249,7]
[363226321,1748629848824,-153.235469,0.000249,7]
[363226322,1748629848834,-151.0,0.000249,7]
[363226323,1748629848843,-151.0,0.000249,7]
[363226324,1748629848853,-151.0,0.000249,7]
[363226325,1748629848863,-700.0,0.000249,9]
[363226326,1748629848872,-151.0,0.000249,7]
[363226327,1748629848882,-249.020013,0.000249,7]
[363226328,1748629848891,-246253.075089,0.000249,3]
[363226329,1748629848901,-151.0,0.000249,7]
[363226330,1748629848909,-242.120063,0.000249,7]
[363226331,1748629848918,-242.120063,0.000249,7]
[363226332,1748629848927,-151.0,0.000249,7]
[363226333,1748629848936,-817.881421,0.000249,7]
[363226334,1748629848946,-151.0,0.000249,7]
[363226335,1748629848955,-817.881421,0.000249,7]
[363226336,1748629848966,-151.0,0.000249,7]
[363226337,1748629848975,-151.0,0.000249,7]
[363226338,1748629848985,-196.145587,0.000249,7]
[363226339,1748629848995,-300.0,0.0002493,10]
[363226340,1748629849004,-300.0,0.0002493,10]
[363226341,1748629849013,-300.0,0.0002493,10]
[363226342,1748629849023,-196.145587,0.0002493,7]
[363226343,1748629849033,-151.0,0.00024931,7]
[363226344,1748629849043,-806.79,0.00024932,2]
[363226345,1748629849053,-6073.90825069,0.00024969,12]
[363226346,1748629849062,-300.0,0.00024982,10]
[363226347,1748629849071,-300.0,0.00024982,10]
[363226348,1748629849082,-500.0,0.00024986,2]
[363226349,1748629849092,-300.0,0.00024999,10]
[363226350,1748629849101,-553.8480961,0.00025,2]
[363226351,1748629849110,-2017.84409738,0.00025,2]
[363226352,1748629849119,-201.10492611,0.00025,2]
[363226353,1748629849129,-1729.44079076,0.00025,2]
[363226354,1748629849138,-257.9020737,0.00025,2]
[363226355,1748629849148,-15999.999999,0.00025,5]
[363226356,1748629849158,-12934.44618201,0.00025,2]
[363226357,1748629849167,-17472.348758,0.00025,2]
[363226358,1748629849176,-6056.48687015,0.00025,2]
[363226359,1748629849186,-200.0,0.00025,2]
[363226360,1748629849195,-2949.46653407,0.00025,2]
[363226361,1748629849204,-4020.82476976,0.00025,2]
[363226362,1748629849213,-1769.05186455,0.00025,2]
[363226363,1748629849222,-1031.36571119,0.00025,2]
[363226364,1748629849231,-162.08744471,0.00025,2]
[363226365,1748629849240,-10358.35055828,0.00025,2]
[363226366,1748629849249,-228.97484231,0.00025,2]
[363226367,1748629849259,-150.0,0.00025,2]
[363226368,1748629849268,-150.0,0.00025,2]
[363226369,1748629849277,-150.0,0.00025,2]
[363226370,1748629849287,-150.0,0.00025,2]
[363226371,1748629849296,-150.0,0.00025,2]
[363226372,1748629849305,-150.0,0.00025,2]
[363226373,1748629849315,-1000.0,0.00025,19]
[363226374,1748629849324,-150.0,0.00025,2]
[363226375,1748629849334,-1000.0,0.00025,18]
[363226376,1748629849343,-150.0,0.00025,2]
[363226377,1748629849354,-1000.0,0.00025,18]
[363226378,1748629849363,-150.0,0.00025,2]
[363226379,1748629849374,-1000.0,0.00025,17]
[363226380,1748629849383,-1000.0,0.00025,15]
[363226381,1748629849393,-150.0,0.00025,2]
[363226382,1748629849402,-150.0,0.00025,2]
[363226383,1748629849411,-1000.0,0.00025,19]
[363226384,1748629849421,-150.0,0.00025,2]
[363226385,1748629849430,-220.581,0.00025,2]
[363226386,1748629849440,-1802.17487069,0.00025,5]
[363226387,1748629849449,-151.0,0.00025,7]
[363226388,1748629849459,-248.984211,0.00025,7]
[363226389,1748629849468,-151.0,0.00025,7]
[363226390,1748629849477,-151.0,0.00025,7]
[363226391,1748629849487,-151.0,0.00025,5]
[363226392,1748629849497,-151.0,0.00025,7]
[363226393,1748629849508,-151.0,0.00025,7]
[363226394,1748629849518,-151.0,0.00025,7]
[363226395,1748629849527,-151.0,0.00025,7]
[363226396,1748629849537,-151.0,0.00025,7]
[363226397,1748629849546,-151.0,0.00025,7]
[363226398,1748629849556,-300.0,0.00025,2]
[363226399,1748629849569,-1881.99999905,0.00025,7]
[363226400,1748629849579,-17400.5160695,0.00025,2]
[363226401,1748629849589,-500.0,0.00025,2]
[363226402,1748629849598,-1700.0,0.00025002,2]
[363226403,1748629849613,-6900.0,0.00025003,2]
[363226404,1748629849622,-500.0,0.0002501,2]
[363226405,1748629849631,-192.9661133,0.00025014,2]
[363226406,1748629849640,-600.0,0.00025028,2]
[363226407,1748629849650,-3900.0,0.00025031,2]
[363226408,1748629849659,-600.0,0.00025045,2]
[363226409,1748629849670,-500.0,0.00025055,2]
[363226410,1748629849681,-500.0,0.00025059,2]
[363226411,1748629849690,-500.0,0.00025063,2]
[363226412,1748629849701,-3900.0,0.00025065,2]
[363226413,1748629849711,-3900.0,0.00025082,2]
[363226414,1748629849720,-3275.13093216,0.000251,2]
[363226415,1748629849730,-600.0,0.00025131,2]
[363226416,1748629849739,-500.0,0.00025144,2]
[363226417,1748629849748,-1245.78540973,0.00025146,15]
[363226418,1748629849757,-3900.0,0.00025149,2]
[363226419,1748629849769,-1400.0,0.00025149,2]
[363226420,1748629849787,-500.0,0.00025149,2]
[363226421,1748629849801,-600.0,0.00025152,2]
[363226422,1748629849815,-619.47773,0.0002516,2]
[363226423,1748629849830,-1400.0,0.00025161,2]
[363226424,1748629849848,-1700.0,0.00025163,2]
[363226425,1748629849862,-500.0,0.00025167,2]
[363226426,1748629849875,-151.0,0.00025169,2]
[363226427,1748629849892,-500.0,0.00025179,2]
[363226428,1748629849908,-3900.0,0.00025186,2]
[363226429,1748629849924,-500.0,0.00025187,2]
[363226430,1748629849941,-500.0,0.0002519,2]
[363226431,1748629849957,-1700.0,0.00025198,2]
[363226432,1748629849972,-229.976772,0.00025205,7]
[363226433,1748629849987,-151.0,0.00025205,2]
[363226434,1748629850001,-500.0,0.00025212,2]
[363226435,1748629850017,-164.8285344,0.00025216,2]
[363226436,1748629850033,-500.0,0.00025223,2]
[363226437,1748629850047,-1400.0,0.00025239,2]
[363226438,1748629850063,-3900.0,0.00025244,2]
[363226439,1748629850080,-6900.0,0.00025244,2]
[363226440,1748629850094,-500.0,0.00025246,2]
[363226441,1748629850108,-169.31,0.00025248,2]
[363226442,1748629850125,-300.0,0.0002525,2]
[363226443,1748629850137,-1400.0,0.0002529,2]
[363226444,1748629850149,-1700.0,0.00025294,2]
[363226445,1748629850163,-9034.59,0.000253,7]
[363226446,1748629850176,-600.0,0.00025313,2]
[363226447,1748629850188,-150.0,0.00025315,2]
[363226448,1748629850203,-1400.0,0.00025317,2]
[363226449,1748629850215,-500.0,0.00025325,2]
[363226450,1748629850228,-6900.0,0.00025327,2]
[363226451,1748629850241,-600.0,0.00025333,2]
[363226452,1748629850254,-1400.0,0.00025342,2]
[363226453,1748629850267,-1400.0,0.00025345,2]
[363226454,1748629850279,-6900.0,0.00025372,2]
[363226455,1748629850292,-500.0,0.00025372,2]
[363226456,1748629850304,-931.58320773,0.00025375,120]
[363226457,1748629850317,-164.53336123,0.00025377,2]
[363226458,1748629850329,-500.0,0.00025382,2]
[363226459,1748629850343,-3900.0,0.00025388,2]
[363226460,1748629850356,-1400.0,0.0002539,2]
[363226461,1748629850373,-500.0,0.00025395,2]
[363226462,1748629850385,-500.0,0.00025395,2]
[363226463,1748629850398,-6900.0,0.00025431,2]
[363226464,1748629850411,-168.3888056,0.0002544,2]
[363226465,1748629850424,-231.47552679,0.0002544,2]
[363226466,1748629850438,-231.28369723,0.0002544,2]
[363226467,1748629850450,-745.65223616,0.0002544,2]
[363226468,1748629850464,-500.0,0.00025446,2]
[363226469,1748629850476,-500.0,0.00025447,2]
[363226470,1748629850489,-512.43439366,0.00025461,2]
[363226471,1748629850502,-600.0,0.00025466,2]
[363226472,1748629850515,-238.385818,0.00025479,7]
[363226473,1748629850528,-453.99,0.00025479,2]
[363226474,1748629850541,-453.99,0.00025479,2]
[363226475,1748629850554,-453.99,0.00025479,2]
[363226476,1748629850567,-453.99,0.00025479,2]
[363226477,1748629850580,-6900.0,0.00025482,2]
[363226478,1748629850593,-1400.0,0.00025486,2]
[363226479,1748629850606,-1700.0,0.00025531,2]
[363226480,1748629850621,-500.0,0.00025531,2]
[363226481,1748629850634,-500.0,0.00025531,2]
[363226482,1748629850649,-500.0,0.00025531,2]
[363226483,1748629850662,-500.0,0.00025531,2]
[363226484,1748629850675,-500.0,0.00025531,2]
[363226485,1748629850692,-500.0,0.00025531,2]
[363226486,1748629850712,-500.0,0.00025531,2]
[363226487,1748629850725,-500.0,0.00025531,2]
[363226488,1748629850738,-500.0,0.00025531,2]
[363226489,1748629850751,-500.0,0.00025531,2]
[363226490,1748629850764,-500.0,0.00025531,2]
[363226491,1748629850777,-500.0,0.00025531,2]
[363226492,1748629850791,-500.0,0.00025531,2]
[363226493,1748629850806,-500.0,0.00025531,2]
[363226494,1748629850820,-500.0,0.00025531,2]
[363226495,1748629850834,-500.0,0.00025531,2]
[363226496,1748629850847,-500.0,0.00025531,2]
[363226497,1748629850859,-500.0,0.00025531,2]
[363226498,1748629850872,-500.0,0.00025531,2]
[363226499,1748629850885,-500.0,0.00025531,2]
[363226500,1748629850898,-500.0,0.00025531,2]
[363226501,1748629850911,-500.0,0.00025531,2]
[363226502,1748629850924,-500.0,0.00025531,2]
[363226503,1748629850937,-500.0,0.00025531,2]
[363226504,1748629850950,-500.0,0.00025531,2]
[363226505,1748629850964,-500.0,0.00025533,2]
[363226506,1748629850977,-6900.0,0.00025552,2]
[363226507,1748629850990,-1600.0,0.00025554,120]
[363226508,1748629851004,-600.0,0.00025567,2]
[363226509,1748629851017,-600.0,0.00025591,2]
[363226510,1748629851031,-500.0,0.00025595,2]
[363226511,1748629851044,-306.85622533,0.000256,2]
[363226512,1748629851057,-306.85622533,0.000256,2]
[363226513,1748629851071,-151.0,0.000256,7]
[363226514,1748629851084,-261326.35,0.000256,7]
[363226515,1748629851098,-1700.0,0.00025605,2]
[363226516,1748629851111,-967.43542014,0.00025614,2]
[363226517,1748629851124,-500.0,0.00025627,2]
[363226518,1748629851137,-1700.0,0.00025637,2]
[363226519,1748629851151,-500.0,0.00025652,2]
[363226520,1748629851164,-500.0,0.00025655,2]
[363226521,1748629851177,-163.41321543,0.00025678,2]
[363226522,1748629851191,-212.87827641,0.00025678,2]
[363226523,1748629851204,-151.0,0.00025686,7]
[363226524,1748629851218,-500.0,0.00025692,2]
[363226525,1748629851231,-600.0,0.00025693,2]
[363226526,1748629851244,-6073.90825069,0.00025693,13]
[363226527,1748629851258,-1400.0,0.00025694,2]
[363226528,1748629851272,-634.0,0.00025698,2]
[363226529,1748629851286,-801.0,0.00025698,2]
[363226530,1748629851299,-924.0,0.00025698,2]
[363226531,1748629851313,-588.0,0.00025698,2]
[363226532,1748629851326,-1268.0,0.00025698,2]
[363226533,1748629851341,-1466.0,0.00025698,2]
[363226534,1748629851354,-556.0,0.00025698,2]
[363226535,1748629851366,-1155.0,0.00025698,2]
[363226536,1748629851379,-1314.0,0.00025698,2]
[363226537,1748629851391,-6929.0,0.00025698,2]
[363226538,1748629851404,-941.0,0.00025698,2]
[363226539,1748629851417,-155.0,0.00025698,2]
[363226540,1748629851429,-155.0,0.00025698,2]
[363226541,1748629851441,-4965.365986,0.00025712,7]
[363226542,1748629851454,-4965.365986,0.00025712,7]
[363226543,1748629851467,-151.0,0.00025712,7]
[363226544,1748629851480,-500.0,0.00025716,2]
[363226545,1748629851493,-153.17477443,0.00025717,2]
[363226546,1748629851507,-152.0,0.00025753,2]
[363226547,1748629851520,-212.0,0.00025775,7]
[363226548,1748629851533,-151.0,0.00025775,7]
[363226549,1748629851547,-500.0,0.00025777,2]
[363226550,1748629851560,-500.0,0.00025779,2]
[363226551,1748629851573,-151.0,0.000258,7]
[363226552,1748629851586,-151.0,0.000258,7]
[363226553,1748629851599,-164.833223,0.000258,7]
[363226554,1748629851615,-223.349154,0.000258,7]
[363226555,1748629851628,-151.0,0.000258,7]
[363226556,1748629851641,-151.0,0.000258,7]
[363226557,1748629851655,-151.0,0.000258,7]
[363226558,1748629851668,-151.0,0.000258,7]
[363226559,1748629851682,-151.0,0.000258,7]
[363226560,1748629851695,-151.0,0.000258,7]
[363226561,1748629851709,-322.129042,0.000258,7]
[363226562,1748629851723,-322.129042,0.000258,7]
[363226563,1748629851736,-163.304967,0.000258,7]
[363226564,1748629851748,-163.304967,0.000258,7]
[363226565,1748629851761,-151.0,0.000258,7]
[363226566,1748629851774,-151.0,0.000258,7]
[363226567,1748629851787,-151.0,0.000258,7]
[363226568,1748629851799,-151.0,0.000258,7]
[363226569,1748629851813,-223.904983,0.000258,7]
[363226570,1748629851826,-197.577591,0.000258,7]
[363226571,1748629851841,-197.577591,0.000258,7]
[363226572,1748629851854,-151.0,0.000258,7]
[363226573,1748629851866,-151.0,0.000258,7]
[363226574,1748629851875,-189.993446,0.000258,7]
[363226575,1748629851884,-156.104222,0.000258,7]
[363226576,1748629851893,-151.0,0.000258,7]
[363226577,1748629851904,-151.0,0.000258,7]
[363226578,1748629851914,-151.0,0.000258,7]
[363226579,1748629851923,-151.0,0.000258,7]
[363226580,1748629851934,-151.0,0.000258,7]
[363226581,1748629851943,-151.0,0.000258,7]
[363226582,1748629851953,-151.0,0.000258,7]
[363226583,1748629851963,-151.0,0.000258,7]
[363226584,1748629851972,-151.0,0.000258,7]
[363226585,1748629851982,-151.0,0.000258,7]
[363226586,1748629851992,-151.0,0.000258,7]
[363226587,1748629852001,-151.0,0.000258,7]
[363226588,1748629852397,-151.0,0.000258,7]
[363226589,1748629852426,-151.0,0.000258,7]
[363226590,1748629852446,-151.0,0.000258,7]
[363226591,1748629852456,-151.0,0.000258,7]
[363226592,1748629852466,-151.0,0.000258,7]
[363226593,1748629852475,-1739.178541,0.000258,7]
[363226594,1748629852485,-151.0,0.000258,7]
[363226595,1748629852494,-1739.178541,0.000258,7]
[363226596,1748629852503,-151.0,0.000258,7]
[363226597,1748629852513,-6900.0,0.00025805,2]
[363226598,1748629852523,-823.0,0.00025819,2]
[363226599,1748629852532,-3292.0,0.00025826,2]
[363226600,1748629852541,-500.0,0.00025842,2]
[363226601,1748629852551,-1400.0,0.00025846,2]
[363226602,1748629852560,-151.0,0.00025857,7]
[363226603,1748629852569,-151.0,0.00025857,7]
[363226604,1748629852578,-151.0,0.00025857,7]
[363226605,1748629852590,-158.720293,0.00025857,7]
[363226606,1748629852599,-3900.0,0.00025858,2]
[363226607,1748629852611,-500.0,0.00025866,2]
[363226608,1748629852620,-1700.0,0.00025866,2]
[363226609,1748629852630,-500.0,0.00025866,2]
[363226610,1748629852639,-1700.0,0.00025869,2]
[363226611,1748629852648,-6900.0,0.00025869,2]
[363226612,1748629852658,-3900.0,0.0002587,2]
[363226613,1748629852667,-500.0,0.00025873,2]
[363226614,1748629852677,-6900.0,0.00025904,2]
[363226615,1748629852686,-1132.04,0.00025907,2]
[363226616,1748629852696,-500.0,0.0002591,2]
[363226617,1748629852705,-151.0,0.00025918,7]
[363226618,1748629852715,-151.0,0.00025918,7]
[363226619,1748629852726,-151.0,0.00025918,7]
[363226620,1748629852736,-242.120063,0.00025918,7]
[363226621,1748629852745,-242.120063,0.00025918,7]
[363226622,1748629852755,-151.0,0.00025918,7]
[363226623,1748629852764,-1700.0,0.0002593,2]
[363226624,1748629852773,-1400.0,0.00025932,2]
[363226625,1748629852783,-151.0,0.00025939,7]
[363226626,1748629852792,-151.0,0.00025939,7]
[363226627,1748629852802,-151.0,0.00025939,7]
[363226628,1748629852811,-151.0,0.00025939,7]
[363226629,1748629852820,-151.0,0.00025939,7]
[363226630,1748629852829,-151.0,0.00025939,7]
[363226631,1748629852840,-151.0,0.00025939,7]
[363226632,1748629852850,-817.881421,0.00025939,7]
[363226633,1748629852859,-817.881421,0.00025939,7]
[363226634,1748629852868,-3900.0,0.00025944,2]
[363226635,1748629852878,-196.145587,0.00025944,7]
[363226636,1748629852887,-6900.0,0.0002595,2]
[363226637,1748629852897,-3900.0,0.00025953,2]
[363226638,1748629852907,-600.0,0.0002596,2]
[363226639,1748629852916,-500.0,0.00025965,2]
[363226640,1748629852926,-500.0,0.0002597,2]
[363226641,1748629852935,-6900.0,0.00025984,2]
[363226642,1748629852945,-581.45021011,0.0002599,2]
[363226643,1748629852955,-952.0,0.0002599,2]
[363226644,1748629852965,-4381.25518767,0.00026,2]
[363226645,1748629852974,-922.76882717,0.00026,2]
[363226646,1748629852983,-309.15037662,0.00026,2]
[363226647,1748629852993,-2000.0,0.00026,2]
[363226648,1748629853002,-151.0,0.00026,7]
[363226649,1748629853012,-151.0,0.00026,7]
[363226650,1748629853021,-4000.0,0.00026,4]
[363226651,1748629853030,-1700.0,0.00026017,2]
[363226652,1748629853040,-3900.0,0.00026026,2]
[363226653,1748629853050,-151.0,0.00026027,7]
[363226654,1748629853059,-400.0,0.00026027,2]
[363226655,1748629853069,-500.0,0.00026039,2]
[363226656,1748629853078,-500.0,0.00026042,2]
[363226657,1748629853089,-500.0,0.00026051,2]
[363226658,1748629853099,-600.0,0.00026052,2]
[363226659,1748629853108,-564.81404087,0.00026079,2]
[363226660,1748629853118,-157.291095,0.00026086,7]
[363226661,1748629853128,-275.630293,0.00026086,7]
[363226662,1748629853138,-216.355224,0.00026086,7]
[363226663,1748629853147,-325.254327,0.00026086,7]
[363226664,1748629853157,-325.254327,0.00026086,7]
[363226665,1748629853166,-500.0,0.00026089,2]
[363226666,1748629853175,-500.0,0.00026123,2]
[363226667,1748629853184,-500.0,0.00026127,2]
[363226668,1748629853194,-151.0,0.00026137,7]
[363226669,1748629853203,-151.0,0.00026137,7]
[363226670,1748629853212,-500.0,0.00026142,2]
[363226671,1748629853221,-6900.0,0.00026145,2]
[363226672,1748629853230,-600.0,0.00026165,2]
[363226673,1748629853239,-500.0,0.00026168,2]
[363226674,1748629853248,-184.03,0.00026169,2]
[363226675,1748629853258,-1400.0,0.00026181,2]
[363226676,1748629853267,-6900.0,0.00026186,2]
[363226677,1748629853276,-1700.0,0.0002619,2]
[363226678,1748629853285,-500.0,0.00026193,2]
[363226679,1748629853294,-3900.0,0.00026205,2]
[363226680,1748629853304,-1700.0,0.00026223,2]
[363226681,1748629853313,-151.0,0.00026245,7]
[363226682,1748629853322,-151.0,0.00026245,7]
[363226683,1748629853332,-151.0,0.00026245,7]
[363226684,1748629853343,-152.56723,0.00026245,7]
[363226685,1748629853352,-151.0,0.00026245,7]
[363226686,1748629853362,-984.26061,0.00026245,7]
[363226687,1748629853371,-984.26061,0.00026245,7]
[363226688,1748629853380,-819.55575,0.00026245,7]
[363226689,1748629853390,-151.0,0.00026245,7]
[363226690,1748629853399,-202.841095,0.00026245,7]
[363226691,1748629853409,-202.841095,0.00026245,7]
[363226692,1748629853419,-151.0,0.00026245,7]
[363226693,1748629853428,-151.0,0.00026245,7]
[363226694,1748629853437,-151.0,0.00026245,7]
[363226695,1748629853447,-151.0,0.00026245,7]
[363226696,1748629853456,-151.0,0.00026245,7]
[363226697,1748629853465,-949.451029,0.00026245,7]
[363226698,1748629853475,-949.451029,0.00026245,7]
[363226699,1748629853484,-3900.0,0.00026251,2]
[363226700,1748629853494,-500.0,0.00026266,2]
[363226701,1748629853503,-570.80039319,0.00026268,2]
[363226702,1748629853513,-151.7451015,0.00026272,2]
[363226703,1748629853523,-3900.0,0.00026281,2]
[363226704,1748629853532,-153.0,0.00026301,2]
[363226705,1748629853542,-300.59,0.00026301,2]
[363226706,1748629853551,-383.82,0.00026301,2]
[363226707,1748629853560,-150.0,0.00026301,2]
[363226708,1748629853570,-989.27223219,0.00026312,2]
[363226709,1748629853579,-1400.0,0.00026313,2]
[363226710,1748629853589,-1700.0,0.00026316,2]
[363226711,1748629853599,-500.0,0.00026333,2]
[363226712,1748629853609,-500.0,0.00026341,2]
[363226713,1748629853621,-26611.63994414,0.000264,2]
[363226714,1748629853631,-9034.59,0.000264,7]
[363226715,1748629853641,-619.47773,0.000264,2]
[363226716,1748629853651,-500.0,0.00026416,2]